bitfinex/quotes_BTCUSD_20250719
["timestamp","ask_amount","ask_price","bid_price","bid_amount"]
[1752888208550,0.04543022,118050.0,118040.0,0.96474318]
[1752888208809,0.04543022,118050.0,118040.0,0.23637713]
[1752888208810,0.07084223,118050.0,118040.0,0.23637713]
[1752888209020,0.07931321,118050.0,118040.0,0.53720319]
[1752888209234,0.07084287,118050.0,118040.0,0.53720319]
[1752888209451,0.23179205,118050.0,118040.0,0.52873185]
[1752888209671,0.23179205,118050.0,118040.0,0.53720333]
[1752888209886,0.22332143,118050.0,118040.0,0.52026029]
[1752888210109,0.22332143,118050.0,118040.0,0.52873185]
[1752888210334,0.25435337,118050.0,118040.0,0.05]
[1752888210542,0.25435337,118050.0,118040.0,0.11636]
[1752888218645,0.21485059,118050.0,118040.0,0.11636]
[1752888219773,0.21485059,118050.0,118040.0,0.34231457]
[1752888223784,0.21485059,118050.0,118040.0,0.27595457]
[1752888224049,0.21485059,118050.0,118040.0,0.34231457]
[1752888228109,0.21485059,118050.0,118040.0,0.52022022]
[1752888229373,0.21485059,118050.0,118040.0,0.51174866]
[1752888229580,0.21485059,118050.0,118040.0,0.52022036]
[1752888229796,0.21485059,118050.0,118040.0,0.30273735]
[1752888230017,0.21485059,118050.0,118040.0,0.52869192]
[1752888230237,0.21485059,118050.0,118040.0,0.5371634]
[1752888231054,0.21485059,118050.0,118040.0,0.342368]
[1752888231281,0.21485059,118050.0,118040.0,0.52027379]
[1752888231539,0.21485059,118050.0,118040.0,0.75475342]
[1752888231917,0.21485059,118050.0,118040.0,0.76322498]
[1752888232121,0.21485059,118050.0,118040.0,0.77169646]
[1752888232953,0.21485059,118050.0,118040.0,0.76322498]
[1752888233155,0.00060988,118050.0,118040.0,0.78537759]
[1752888233320,0.00908036,118050.0,118040.0,0.78537759]
[1752888233526,0.00060988,118050.0,118040.0,0.80137759]
[1752888234070,0.00908022,118050.0,118040.0,0.80137759]
[1752888235090,0.00060988,118050.0,118040.0,0.57533224]
[1752888235731,0.00908022,118050.0,118040.0,0.57533224]
[1752888235917,0.00060988,118050.0,118040.0,0.59083224]
[1752888236819,0.00060988,118050.0,118040.0,0.36486159]
[1752888237033,0.00908036,118050.0,118040.0,0.59083224]
[1752888237246,0.00908029,118050.0,118040.0,0.59083224]
[1752888237458,0.00908029,118050.0,118040.0,0.57533224]
[1752888238211,0.00908022,118050.0,118040.0,0.57533224]
[1752888238858,0.00060988,118050.0,118040.0,0.59113224]
[1752888240404,0.00060988,118050.0,118040.0,0.57533224]
[1752888242487,0.00060988,118050.0,118040.0,0.55933224]
[1752888242804,0.00908022,118050.0,118040.0,0.55933224]
[1752888243042,0.01755063,118050.0,118040.0,0.55614224]
[1752888243475,0.00908022,118050.0,118040.0,0.55614224]
[1752888244092,0.00060988,118050.0,118040.0,0.55614224]
[1752888245253,0.01755077,118050.0,118040.0,0.33017159]
[1752888245461,0.01755077,118050.0,118040.0,0.55614224]
[1752888246312,0.00908022,118050.0,118040.0,0.55614224]
[1752888246502,0.0175507,118050.0,118040.0,0.55614224]
[1752888246656,0.01755063,118050.0,118040.0,0.55614224]
[1752888247592,0.02602111,118050.0,118040.0,0.55614224]
[1752888248858,0.00908022,118050.0,118040.0,0.55614224]
[1752888249772,0.01755063,118050.0,118040.0,0.55614224]
[1752888249982,0.01755063,118050.0,118040.0,0.55935224]
[1752888250209,0.00908022,118050.0,118040.0,0.55935224]
[1752888251103,0.00060988,118050.0,118040.0,0.55935224]
[1752888251829,0.00908029,118050.0,118040.0,0.55935224]
[1752888252052,0.01755077,118050.0,118040.0,0.55614224]
[1752888252871,0.00908029,118050.0,118040.0,0.55614224]
[1752888253932,0.01755084,118050.0,118040.0,0.55614224]
[1752888254226,0.00908029,118050.0,118040.0,0.55614224]
[1752888254894,0.00060988,118050.0,118040.0,0.58935224]
[1752888255834,0.00060988,118050.0,118040.0,0.36338159]
[1752888256044,0.00060988,118050.0,118040.0,0.58935224]
[1752888257015,0.00060988,118050.0,118040.0,0.81527569]
[1752888258110,0.00908022,118050.0,118040.0,0.78527569]
[1752888258326,0.00060988,118050.0,118040.0,0.78527569]
[1752888263652,0.00060988,118050.0,118040.0,1.12923302]
[1752888264814,0.00060988,118050.0,118040.0,1.46923302]
[1752888266360,0.00060988,118050.0,118040.0,1.47885944]
[1752888267237,0.00230069,118060.0,118040.0,1.44497314]
[1752888267453,0.00230069,118060.0,118050.0,0.79778378]
[1752888267671,0.00230069,118060.0,118050.0,0.80074604]
[1752888268599,0.00230069,118060.0,118050.0,0.80136812]
[1752888269451,0.00230069,118060.0,118050.0,0.34947402]
[1752888269704,0.00230069,118060.0,118050.0,0.80136812]
[1752888270340,0.00230069,118060.0,118050.0,0.80236812]
[1752888271227,0.00230069,118060.0,118050.0,0.79929812]
[1752888273119,0.00230069,118060.0,118050.0,0.80236812]
[1752888286073,0.00230069,118060.0,118050.0,1.39971517]
[1752888286705,0.00230069,118060.0,118050.0,1.17376812]
[1752888291768,0.00230069,118060.0,118050.0,1.15796812]
[1752888293133,0.00230069,118060.0,118050.0,1.14236812]
[1752888296873,0.00230069,118060.0,118050.0,1.38285602]
[1752888297099,0.00230069,118060.0,118050.0,1.41315602]
[1752888299402,0.05960506,118080.0,118070.0,0.19479881]
[1752888299403,0.03685757,118080.0,118070.0,0.19479881]
[1752888299659,0.04532583,118080.0,118070.0,0.71484291]
[1752888299863,0.05058575,118080.0,118070.0,0.71484291]
[1752888300117,0.04222887,118080.0,118070.0,0.71484291]
[1752888300543,0.0506972,118080.0,118070.0,0.71484291]
[1752888301184,0.04522887,118080.0,118070.0,0.71484291]
[1752888301634,0.03876069,118080.0,118070.0,0.71484291]
[1752888303625,0.04722895,118080.0,118070.0,0.76484291]
[1752888303840,0.03876069,118080.0,118070.0,0.76285291]
[1752888304275,0.04722902,118080.0,118070.0,0.76285291]
[1752888304474,0.03876069,118080.0,118070.0,0.76285291]
[1752888304692,0.04722895,118080.0,118070.0,0.76285291]
[1752888305133,0.04422895,118080.0,118070.0,0.76285291]
[1752888305361,0.04222895,118080.0,118070.0,0.76285291]
[1752888305603,0.04422895,118080.0,118070.0,0.76285291]
[1752888305824,0.04522895,118080.0,118070.0,0.76285291]
[1752888306480,0.03676069,118080.0,118070.0,0.76285291]
[1752888306697,0.04522895,118080.0,118070.0,0.76285291]
[1752888306915,0.03676069,118080.0,118070.0,0.76285291]
[1752888307136,0.04522902,118080.0,118070.0,0.76285291]
[1752888307629,0.05369756,118080.0,118070.0,0.76285291]
[1752888307858,0.05369756,118080.0,118070.0,0.31095881]
[1752888308092,0.05369756,118080.0,118070.0,0.76285291]
[1752888308826,0.05369749,118080.0,118070.0,0.76285291]
[1752888309034,0.03676069,118080.0,118070.0,0.76285291]
[1752888309247,0.04522895,118080.0,118070.0,0.76285291]
[1752888309896,0.05369735,118080.0,118070.0,0.76285291]
[1752888310362,0.03676069,118080.0,118070.0,0.76285291]
[1752888310575,0.05369735,118080.0,118070.0,0.76285291]
[1752888311472,0.05369735,118080.0,118070.0,0.31095881]
[1752888311677,0.05369735,118080.0,118070.0,0.76285291]
[1752888312112,0.05369742,118080.0,118070.0,0.76285291]
[1752888312332,0.05369735,118080.0,118070.0,0.76285291]
[1752888312551,0.24001148,118080.0,118070.0,0.30244977]
[1752888312793,0.25783505,118080.0,118070.0,0.51145808]
[1752888313003,0.22307482,118080.0,118070.0,0.35900608]
[1752888313215,0.22307482,118080.0,118070.0,0.36747548]
[1752888313430,0.22307482,118080.0,118070.0,0.53686651]
[1752888313650,0.22307482,118080.0,118070.0,0.12458955]
[1752888313867,0.22307482,118080.0,118070.0,0.3505366]
[1752888314101,0.22307482,118080.0,118070.0,0.34206705]
[1752888314636,0.21460621,118080.0,118070.0,0.27594705]
[1752888314851,0.21460621,118080.0,118070.0,0.34206705]
[1752888315928,0.21460621,118080.0,118070.0,0.05]
[1752888316139,0.86431225,118080.0,118070.0,0.05]
[1752888316489,0.6383652,118080.0,118070.0,0.11612]
[1752888316702,0.1863609,118050.0,118040.0,0.18652657]
[1752888316920,0.22785181,118050.0,118040.0,0.71301208]
[1752888317135,0.23109181,118050.0,118040.0,0.71301208]
[1752888317354,0.06167201,118050.0,118040.0,0.26958925]
[1752888317558,0.07014299,118050.0,118040.0,0.72148335]
[1752888318577,0.23956272,118050.0,118040.0,0.71601208]
[1752888318810,0.23956272,118050.0,118040.0,0.73295469]
[1752888319015,0.23956272,118050.0,118040.0,0.73195469]
[1752888319227,0.23956272,118050.0,118040.0,0.72348335]
[1752888319228,0.23109224,118050.0,118040.0,0.72348335]
[1752888319446,0.05320153,118050.0,118040.0,0.72995455]
[1752888319668,0.23109224,118050.0,118040.0,0.72348335]
[1752888320086,0.06167251,118050.0,118040.0,0.73195455]
[1752888320737,0.06167251,118050.0,118040.0,0.70654067]
[1752888320738,0.23109224,118050.0,118040.0,0.70654067]
[1752888321071,0.23109224,118050.0,118040.0,0.48906518]
[1752888321477,0.23109224,118050.0,118040.0,0.71501223]
[1752888321734,0.22262155,118050.0,118040.0,0.2365679]
[1752888321895,0.21415071,118050.0,118040.0,0.3026879]
[1752888322103,0.21415071,118050.0,118040.0,0.3006879]
[1752888322329,0.21415071,118050.0,118040.0,0.47959362]
[1752888322493,0.21415071,118050.0,118040.0,0.3036879]
[1752888322494,0.21515071,118050.0,118040.0,0.3036879]
[1752888322698,0.21515071,118050.0,118040.0,0.52963495]
[1752888322923,0.21515071,118050.0,118040.0,0.2952162]
[1752888323343,0.21515071,118050.0,118040.0,0.30368783]
[1752888324190,0.21515071,118050.0,118040.0,0.70754053]
[1752888324744,0.21515071,118050.0,118040.0,0.71601201]
[1752888325650,0.21515071,118050.0,118040.0,0.52116325]
[1752888326600,0.21515071,118050.0,118040.0,0.52016325]
[1752888326833,0.21515071,118050.0,118040.0,0.2942162]
[1752888327414,0.21515071,118050.0,118040.0,0.2952162]
[1752888327637,0.21515071,118050.0,118040.0,0.3036879]
[1752888327875,0.21515071,118050.0,118040.0,0.52963495]
[1752888328204,0.21515071,118050.0,118040.0,0.70754052]
[1752888328633,0.21515071,118050.0,118040.0,0.71601186]
[1752888329068,0.03402,118050.0,118040.0,0.71816193]
[1752888329294,0.05943216,118050.0,118040.0,0.72663313]
[1752888329484,0.07111307,118050.0,118040.0,0.72663313]
[1752888329692,0.07958405,118050.0,118040.0,0.72663313]
[1752888329907,0.07958405,118050.0,118040.0,0.72448313]
[1752888331150,0.07958405,118050.0,118040.0,0.72448327]
[1752888331360,0.05417161,118050.0,118040.0,0.72448327]
[1752888331579,0.05417161,118050.0,118040.0,0.73295447]
[1752888331835,0.06264252,118050.0,118040.0,0.73295447]
[1752888332046,0.0711135,118050.0,118040.0,0.73295447]
[1752888332384,0.0711135,118050.0,118040.0,0.72448327]
[1752888332601,0.24053323,118050.0,118040.0,0.72448327]
[1752888332824,0.23206246,118050.0,118040.0,0.71601193]
[1752888333444,0.23206246,118050.0,118040.0,0.69906904]
[1752888333651,0.22359162,118050.0,118040.0,0.7075406]
[1752888334070,0.22359162,118050.0,118040.0,0.52116325]
[1752888334386,0.21512071,118050.0,118040.0,0.52116325]
[1752888334872,0.25357431,118050.0,118040.0,0.2952162]
[1752888335431,0.21512071,118050.0,118040.0,0.2952162]
[1752888335829,0.21512071,118050.0,118040.0,0.52116325]
[1752888336780,0.21512071,118050.0,118040.0,0.2952162]
[1752888337517,0.21512071,118050.0,118040.0,0.46465029]
[1752888337723,0.21512071,118050.0,118040.0,0.24717494]
[1752888337944,0.21512071,118050.0,118040.0,0.69906904]
[1752888338442,0.21512071,118050.0,118040.0,0.24717494]
[1752888338653,0.20664973,118050.0,118040.0,0.52963495]
[1752888339114,0.20664973,118050.0,118040.0,0.53810658]
[1752888339468,0.20664973,118050.0,118040.0,0.71601215]
[1752888339885,0.20664973,118050.0,118040.0,0.72448356]
[1752888340315,0.20664973,118050.0,118040.0,0.52116325]
[1752888340522,0.20664973,118050.0,118040.0,0.52963495]
[1752888341612,0.20664973,118050.0,118040.0,0.70754067]
[1752888343008,0.20664973,118050.0,118040.0,0.72448371]
[1752888344036,0.21512057,118050.0,118040.0,0.73295512]
[1752888344252,0.21512057,118050.0,118040.0,0.73295476]
[1752888344923,0.21512057,118050.0,118040.0,0.00314915]
[1752888345150,0.21512057,118050.0,118040.0,0.30364783]
[1752888345375,0.21512057,118050.0,118040.0,0.52959488]
[1752888346985,0.21512057,118050.0,118040.0,0.52112325]
[1752888349249,0.21512057,118050.0,118040.0,0.52959488]
[1752888350293,0.21512057,118050.0,118040.0,0.52108325]
[1752888350509,0.21512057,118050.0,118040.0,0.00314915]
[1752888350751,0.21512057,118050.0,118040.0,0.06918915]
[1752888350921,0.21512057,118050.0,118040.0,0.2951362]
[1752888351147,0.27616886,118050.0,118040.0,0.2951362]
[1752888352119,0.27616886,118050.0,118040.0,0.2290962]
[1752888352334,0.27616886,118050.0,118040.0,0.2951362]
[1752888352553,0.50211591,118050.0,118040.0,0.00314915]
[1752888352759,0.27616886,118050.0,118040.0,0.06918915]
[1752888353436,0.50211591,118050.0,118040.0,0.06918915]
[1752888355033,0.58762619,118050.0,118040.0,0.06918915]
[1752888356296,0.36167914,118050.0,118040.0,0.06918915]
[1752888363447,0.36167914,118050.0,118040.0,0.2951362]
[1752888364018,0.36167914,118050.0,118040.0,0.06918915]
[1752888364453,0.30063085,118050.0,118040.0,0.06918915]
[1752888365093,0.30063085,118050.0,118040.0,0.2951362]
[1752888366392,0.88111875,118050.0,118040.0,0.00314915]
[1752888366622,1.20354085,118050.0,118040.0,0.00314915]
[1752888366874,1.25354085,118050.0,118040.0,0.00314915]
[1752888367109,1.33930047,118050.0,118040.0,0.00314915]
[1752888367325,1.36474347,118050.0,118040.0,0.00314915]
[1752888367553,1.36474347,118050.0,118040.0,1e-08]
[1752888367773,0.20900565,118040.0,118030.0,0.01]
[1752888367982,0.81450003,118040.0,118030.0,0.01014927]
[1752888368201,0.90318965,118040.0,118030.0,0.01014927]
[1752888368646,0.92863265,118040.0,118030.0,0.01014927]
[1752888368871,0.47673855,118040.0,118030.0,0.01014927]
[1752888369108,0.70288565,118040.0,118030.0,0.01014927]
[1752888369319,0.70488565,118040.0,118030.0,0.01014927]
[1752888370415,0.70788565,118040.0,118030.0,0.01114927]
[1752888370846,0.48173855,118040.0,118030.0,0.01114927]
[1752888371071,0.70788565,118040.0,118030.0,0.01114927]
[1752888372443,0.48173855,118040.0,118030.0,0.01114927]
[1752888372627,0.70788565,118040.0,118030.0,0.01114927]
[1752888374201,0.41573855,118040.0,118030.0,0.01114927]
[1752888374407,0.030443,118040.0,118030.0,0.49176958]
[1752888374612,0.19137699,118040.0,118030.0,0.53144185]
[1752888374823,0.18290565,118040.0,118030.0,0.32944879]
[1752888375035,0.18290565,118040.0,118030.0,0.31384879]
[1752888375238,0.26866527,118040.0,118030.0,0.32232114]
[1752888375449,0.26866527,118040.0,118030.0,0.49176958]
[1752888375646,0.18290565,118040.0,118030.0,0.50024185]
[1752888375845,0.18290565,118040.0,118030.0,0.50871405]
[1752888376232,0.18290565,118040.0,118030.0,0.50024185]
[1752888377069,0.17652409,118040.0,118030.0,0.31384879]
[1752888377302,0.19495409,118040.0,118030.0,0.07922927]
[1752888377509,0.28071371,118040.0,118030.0,0.07922927]
[1752888382088,0.28071371,118040.0,118030.0,0.07714927]
[1752888382688,0.29731371,118040.0,118030.0,0.07714927]
[1752888383990,0.29731371,118040.0,118030.0,0.01114927]
[1752888384213,0.29731371,118040.0,118030.0,0.07714927]
[1752888385474,0.29731371,118040.0,118030.0,0.01114927]
[1752888385679,0.60897109,118040.0,118030.0,0.01114927]
[1752888386323,0.63441209,118040.0,118030.0,0.01114927]
[1752888387675,0.70041209,118040.0,118030.0,0.01114927]
[1752888390341,0.47426499,118040.0,118030.0,0.01114927]
[1752888390546,0.70041209,118040.0,118030.0,0.01114927]
[1752888390854,1.04041209,118040.0,118030.0,0.01114927]
[1752888393480,0.81426499,118040.0,118030.0,0.01114927]
[1752888393704,1.04041209,118040.0,118030.0,0.01114927]
[1752888397141,0.18640857,118020.0,118010.0,0.00710927]
[1752888397373,0.24105616,118020.0,118010.0,0.00715915]
[1752888397827,0.24421616,118020.0,118010.0,0.00715915]
[1752888398480,0.25971616,118020.0,118010.0,0.00715915]
[1752888398902,0.36082644,118020.0,118010.0,0.00715915]
[1752888400009,0.5952771,118020.0,118010.0,0.00715915]
[1752888400235,0.37013,118020.0,118010.0,0.00715915]
[1752888400450,0.37213,118020.0,118010.0,0.00815915]
[1752888402435,0.36382644,118020.0,118010.0,0.00815915]
[1752888404952,0.59000261,118020.0,118010.0,0.00815915]
[1752888405782,0.36382644,118020.0,118010.0,0.00815915]
[1752888406026,0.59000261,118020.0,118010.0,0.00815915]
[1752888406893,0.31124885,118020.0,118010.0,0.00815915]
[1752888407117,0.53742502,118020.0,118010.0,0.00815915]
[1752888407358,0.54600381,118020.0,118010.0,0.00815915]
[1752888410284,0.19798736,118020.0,118010.0,0.22925605]
[1752888410500,0.19798736,118020.0,118010.0,0.26075605]
[1752888410702,0.24639325,118020.0,118010.0,0.26390605]
[1752888411359,0.23792047,118020.0,118010.0,0.26390605]
[1752888411504,0.23792047,118020.0,118010.0,0.2723799]
[1752888412118,0.23792047,118020.0,118010.0,0.26390605]
[1752888412539,0.23792047,118020.0,118010.0,0.22925605]
[1752888412976,0.23792047,118020.0,118010.0,0.00307988]
[1752888415022,0.25857047,118020.0,118010.0,0.00104988]
[1752888415230,0.36018075,118020.0,118010.0,0.00104988]
[1752888417726,0.38562675,118020.0,118010.0,0.00104988]
[1752888421035,0.36952675,118020.0,118010.0,0.00104988]
[1752888421518,0.34408075,118020.0,118010.0,0.00104988]
[1752888421741,0.32868075,118020.0,118010.0,0.00104988]
[1752888421966,0.18951458,118020.0,118010.0,0.26059343]
[1752888422191,0.18951458,118020.0,118010.0,0.43323059]
[1752888422419,0.003,118020.0,118010.0,0.45865129]
[1752888423985,0.003,118020.0,118010.0,0.68479484]
[1752888424414,0.003,118020.0,118010.0,0.45865129]
[1752888427361,0.003,118020.0,118010.0,0.54416157]
[1752888427778,0.003,118020.0,118010.0,0.77030512]
[1752888427982,0.003,118020.0,118010.0,1.11030512]
[1752888428450,0.003,118020.0,118010.0,1.10714512]
[1752888428667,0.003,118020.0,118010.0,0.95004157]
[1752888431339,0.01147249,118020.0,118010.0,0.95004157]
[1752888431868,0.003,118020.0,118010.0,0.95004157]
[1752888433252,0.01147249,118020.0,118010.0,0.95004157]
[1752888433454,0.003,118020.0,118010.0,0.95004157]
[1752888435073,0.003,118020.0,118010.0,0.88416157]
[1752888435305,0.01994512,118020.0,118010.0,0.17262704]
[1752888435529,0.22555871,118020.0,118010.0,0.06688988]
[1752888438056,0.18940871,118020.0,118010.0,0.48155794]
[1752888438267,0.18940871,118020.0,118010.0,0.49003151]
[1752888439351,0.18940871,118020.0,118010.0,0.48155794]
[1752888440635,0.18093586,118020.0,118010.0,0.4730843]
[1752888441460,0.18093586,118020.0,118010.0,0.46461059]
[1752888441691,0.18093586,118020.0,118010.0,0.47308444]
[1752888441925,0.18093586,118020.0,118010.0,0.48471808]
[1752888442582,0.18093586,118020.0,118010.0,0.48155808]
[1752888444440,0.18093586,118020.0,118010.0,0.49003165]
[1752888445334,0.18093586,118020.0,118010.0,0.49850514]
[1752888445860,0.003,118020.0,118010.0,0.52650849]
[1752888446061,0.003,118020.0,118010.0,0.54230849]
[1752888446479,0.003,118020.0,118010.0,0.62781877]
[1752888446693,0.003,118020.0,118010.0,0.85396232]
[1752888446903,0.003,118020.0,118010.0,0.62781877]
[1752888452012,0.00287668,118020.0,118010.0,0.62781877]
[1752888454349,0.00287668,118020.0,118010.0,0.85396232]
[1752888454550,0.00287668,118020.0,118010.0,0.62781877]
[1752888454969,0.00287668,118020.0,118010.0,0.40167522]
[1752888455195,0.00287668,118020.0,118010.0,0.62781877]
[1752888458842,0.00287668,118020.0,118010.0,0.85396232]
[1752888459649,0.00287668,118020.0,118010.0,0.62781877]
[1752888460781,0.00287668,118020.0,118010.0,0.85396232]
[1752888462230,0.00287668,118020.0,118010.0,0.62781877]
[1752888464659,0.00287668,118020.0,118010.0,0.85396232]
[1752888472906,0.00287668,118020.0,118010.0,0.62781877]
[1752888474378,0.00287668,118020.0,118010.0,0.40167522]
[1752888474646,0.00287668,118020.0,118010.0,0.85396232]
[1752888479813,0.01906845,118030.0,118020.0,0.64716844]
[1752888480018,0.01906845,118030.0,118020.0,0.71488844]
[1752888480892,0.0152,118030.0,118020.0,0.71488844]
[1752888481093,0.02367177,118030.0,118020.0,0.71488844]
[1752888481318,0.02667177,118030.0,118020.0,0.71588844]
[1752888481512,0.0182,118030.0,118020.0,0.71588844]
[1752888482288,0.0192,118030.0,118020.0,0.71588844]
[1752888482894,0.02767177,118030.0,118020.0,0.71588844]
[1752888483100,0.02963177,118030.0,118020.0,0.71566826]
[1752888483298,0.03270177,118030.0,118020.0,0.71566826]
[1752888483939,0.02423,118030.0,118020.0,0.71566826]
[1752888484727,0.01451572,118040.0,118030.0,0.19486483]
[1752888484980,0.03341862,118040.0,118030.0,0.48661829]
[1752888485334,0.0334184,118040.0,118030.0,0.48661829]
[1752888486400,0.0438901,118040.0,118030.0,0.48661829]
[1752888486584,0.0384184,118040.0,118030.0,0.48761829]
[1752888486839,0.0468901,118040.0,118030.0,0.48761829]
[1752888487050,0.03841883,118040.0,118030.0,0.48761844]
[1752888487263,0.03841883,118040.0,118030.0,0.49609043]
[1752888487566,0.02994713,118040.0,118030.0,0.50456234]
[1752888487852,0.06971876,118040.0,118030.0,0.50456234]
[1752888488023,0.07819046,118040.0,118030.0,0.50456234]
[1752888488227,0.06124713,118040.0,118030.0,0.50456234]
[1752888488570,0.06971876,118040.0,118030.0,0.50456234]
[1752888488978,0.07819046,118040.0,118030.0,0.50456234]
[1752888489445,0.06971876,118040.0,118030.0,0.50456234]
[1752888489646,0.06124713,118040.0,118030.0,0.50456234]
[1752888489861,0.06124713,118040.0,118030.0,0.50656234]
[1752888490619,0.04514713,118040.0,118030.0,0.50656234]
[1752888490829,0.04514713,118040.0,118030.0,0.27205697]
[1752888491050,0.23058122,118040.0,118030.0,0.48961844]
[1752888491516,0.23058122,118040.0,118030.0,0.48761844]
[1752888492834,0.23058122,118040.0,118030.0,0.49609043]
[1752888493058,0.06961876,118040.0,118030.0,0.49609043]
[1752888493272,0.07809046,118040.0,118030.0,0.50456234]
[1752888493453,0.06961905,118040.0,118030.0,0.49609043]
[1752888494096,0.06114735,118040.0,118030.0,0.50456234]
[1752888494910,0.04514735,118040.0,118030.0,0.50456234]
[1752888495047,0.04514735,118040.0,118030.0,0.50656234]
[1752888496207,0.03667543,118040.0,118030.0,0.50656234]
[1752888496657,0.03667543,118040.0,118030.0,0.50965234]
[1752888496818,0.04514699,118040.0,118030.0,0.50965234]
[1752888497016,0.05361862,118040.0,118030.0,0.50965234]
[1752888497232,0.22305271,118040.0,118030.0,0.49270844]
[1752888497420,0.21458144,118040.0,118030.0,0.48423638]
[1752888499023,0.03667572,118040.0,118030.0,0.48423638]
[1752888499231,0.04514735,118040.0,118030.0,0.50118028]
[1752888500889,0.05361905,118040.0,118030.0,0.50118028]
[1752888501106,0.04514735,118040.0,118030.0,0.50118028]
[1752888501359,0.03667572,118040.0,118030.0,0.50118028]
[1752888501695,0.03667543,118040.0,118030.0,0.50118028]
[1752888502816,0.03667543,118040.0,118030.0,0.27514682]
[1752888503028,0.05361862,118040.0,118030.0,0.50118028]
[1752888503235,0.05361862,118040.0,118030.0,0.27514682]
[1752888503451,0.05361862,118040.0,118030.0,0.50118028]
[1752888505064,0.03667543,118040.0,118030.0,0.50118028]
[1752888505249,0.04514699,118040.0,118030.0,0.50118028]
[1752888505818,0.005,118040.0,118030.0,0.74241374]
[1752888506025,0.005,118040.0,118030.0,0.75831374]
[1752888510702,0.003,118040.0,118030.0,0.75831374]
[1752888510941,0.02538872,118050.0,118040.0,0.19484833]
[1752888511168,0.02538872,118050.0,118040.0,0.71463525]
[1752888511376,0.02538872,118050.0,118040.0,0.71774525]
[1752888511797,0.03385941,118050.0,118040.0,0.71774525]
[1752888511981,0.00844776,118050.0,118040.0,0.71774525]
[1752888512205,0.01691817,118050.0,118040.0,0.71774525]
[1752888512325,0.01347041,118050.0,118040.0,0.71774525]
[1752888512532,0.01347041,118050.0,118040.0,0.26567833]
[1752888512738,0.02194096,118050.0,118040.0,0.73314525]
[1752888512940,0.02194096,118050.0,118040.0,0.71774525]
[1752888513167,0.01347041,118050.0,118040.0,0.71774525]
[1752888513565,0.02194089,118050.0,118040.0,0.71774525]
[1752888514240,0.02541151,118050.0,118040.0,0.71774525]
[1752888514671,0.02641151,118050.0,118040.0,0.71774525]
[1752888514879,0.03487016,118050.0,118040.0,0.71774525]
[1752888515090,0.03587016,118050.0,118040.0,0.71774525]
[1752888516425,0.02739954,118050.0,118040.0,0.71774525]
[1752888516778,0.03587016,118050.0,118040.0,0.71774525]
[1752888517018,0.04434085,118050.0,118040.0,0.71774525]
[1752888517263,0.03587016,118050.0,118040.0,0.71774525]
[1752888517799,0.04434085,118050.0,118040.0,0.71774525]
[1752888518829,0.03587016,118050.0,118040.0,0.71774525]
[1752888519910,0.04434085,118050.0,118040.0,0.71774525]
[1752888520618,0.05281162,118050.0,118040.0,0.71774525]
[1752888520841,0.04434085,118050.0,118040.0,0.71774525]
[1752888522765,0.03587009,118050.0,118040.0,0.71774525]
[1752888523124,0.04434078,118050.0,118040.0,0.71774525]
[1752888524273,0.04434071,118050.0,118040.0,0.71774525]
[1752888525042,0.05281155,118050.0,118040.0,0.71774525]
[1752888526091,0.04434071,118050.0,118040.0,0.71774525]
[1752888526291,0.05281155,118050.0,118040.0,0.71774525]
[1752888528353,0.05281155,118050.0,118040.0,0.26567833]
[1752888528542,0.05281155,118050.0,118040.0,0.71774525]
[1752888528882,0.04434071,118050.0,118040.0,0.71774525]
[1752888530160,0.03587009,118050.0,118040.0,0.71774525]
[1752888530713,0.04434078,118050.0,118040.0,0.71774525]
[1752888530923,0.03587009,118050.0,118040.0,0.71774525]
[1752888531122,0.04434071,118050.0,118040.0,0.71774525]
[1752888532450,0.01894089,118050.0,118040.0,0.71774525]
[1752888532712,0.02741144,118050.0,118040.0,0.71774525]
[1752888533125,0.03588213,118050.0,118040.0,0.71774525]
[1752888533920,0.02741144,118050.0,118040.0,0.71774525]
[1752888534364,0.03588206,118050.0,118040.0,0.71774525]
[1752888534815,0.01047041,118050.0,118040.0,0.71774525]
[1752888535022,0.01894096,118050.0,118040.0,0.71774525]
[1752888536528,0.02741173,118050.0,118040.0,0.26567833]
[1752888536734,0.02741173,118050.0,118040.0,0.71774525]
[1752888537583,0.02741165,118050.0,118040.0,0.71774525]
[1752888538766,0.03581665,118050.0,118040.0,0.71774525]
[1752888540854,0.04428749,118050.0,118040.0,0.71774525]
[1752888541305,0.03581665,118050.0,118040.0,0.71774525]
[1752888541530,0.02734596,118050.0,118040.0,0.73344525]
[1752888541745,0.03581665,118050.0,118040.0,0.73344525]
[1752888542208,0.02734596,118050.0,118040.0,0.73344525]
[1752888542462,0.03581658,118050.0,118040.0,0.73344525]
[1752888543321,0.03581658,118050.0,118040.0,0.71774525]
[1752888544017,0.02734596,118050.0,118040.0,0.71774525]
[1752888544233,0.03581673,118050.0,118040.0,0.71774525]
[1752888546049,0.02734596,118050.0,118040.0,0.71774525]
[1752888546285,0.03581673,118050.0,118040.0,0.71774525]
[1752888546774,0.04428757,118050.0,118040.0,0.71774525]
[1752888549266,0.03581673,118050.0,118040.0,0.26567833]
[1752888549428,0.03581673,118050.0,118040.0,0.71774525]
[1752888550230,0.03581673,118050.0,118040.0,0.73404525]
[1752888550445,0.04428757,118050.0,118040.0,0.28197833]
[1752888550556,0.04428757,118050.0,118040.0,0.73404525]
[1752888551168,0.02734596,118050.0,118040.0,0.71774525]
[1752888551394,0.04428749,118050.0,118040.0,0.26567833]
[1752888551616,0.04428749,118050.0,118040.0,0.71774525]
[1752888552727,0.0527584,118050.0,118040.0,0.71774525]
[1752888552942,0.05275897,118050.0,118040.0,0.71774525]
[1752888553985,0.02734624,118050.0,118040.0,0.71774525]
[1752888556434,0.03581701,118050.0,118040.0,0.71774525]
[1752888558143,0.03581701,118050.0,118040.0,0.26567833]
[1752888558377,0.03581701,118050.0,118040.0,0.71774525]
[1752888558988,0.02734575,118050.0,118040.0,0.71774525]
[1752888559237,0.02734575,118050.0,118040.0,0.73344525]
[1752888560526,0.0358163,118050.0,118040.0,0.28137833]
[1752888560753,0.02734575,118050.0,118040.0,0.73344525]
[1752888561216,0.03581623,118050.0,118040.0,0.73344525]
[1752888561678,0.01887534,118050.0,118040.0,0.73344525]
[1752888561940,0.02734582,118050.0,118040.0,0.73344525]
[1752888562155,0.010405,118050.0,118040.0,0.73344525]
[1752888562412,0.002,118050.0,118040.0,1.06108899]
[1752888562659,0.002,118050.0,118040.0,0.83505553]
[1752888570913,0.002,118050.0,118040.0,0.38298861]
[1752888571109,0.002,118050.0,118040.0,0.83505553]
[1752888577141,0.002,118050.0,118040.0,0.81895553]
[1752888582121,0.002,118050.0,118040.0,0.83445553]
[1752888584615,0.002,118050.0,118040.0,0.81895553]
[1752888594841,0.002,118050.0,118040.0,0.80325553]
[1752888595667,0.002,118050.0,118040.0,0.35118861]
[1752888595872,0.002,118050.0,118040.0,0.80325553]
[1752888601123,0.03823,118050.0,118030.0,0.16944844]
[1752888601361,0.00847184,118030.0,118020.0,0.20335441]
[1752888601589,0.0671783,118030.0,118020.0,0.47776232]
[1752888601804,0.0671783,118030.0,118020.0,0.25172893]